fUSD/lending_fUSD_20250125
["ID","MTS","AMOUNT","RATE_DAILY","PERIOD"]
[350292211,1737773432337,-500.0,0.00016438,2]
[350292213,1737773432346,-512.56064291,0.00016438,2]
[350292215,1737773432355,-509.46530201,0.00016438,2]
[350292217,1737773432365,-507.03421115,0.00016438,2]
[350292219,1737773432374,-510.4994838,0.00016438,2]
[350292221,1737773432383,-514.47436105,0.00016438,2]
[350292223,1737773432393,-505.24977137,0.00016438,2]
[350292225,1737773432408,-500.0,0.00016438,2]
[350292227,1737773432418,-515.6676117,0.00016438,2]
[350292229,1737773432427,-506.24870958,0.00016438,2]
[350292231,1737773432436,-500.0,0.00016438,2]
[350292233,1737773432445,-500.0,0.00016438,2]
[350292235,1737773432454,-506.08049464,0.00016438,2]
[350292237,1737773432463,-504.66619246,0.00016438,2]
[350292239,1737773432474,-500.0,0.00016438,2]
[350292241,1737773432483,-500.0,0.00016438,2]
[350292243,1737773432491,-504.34491893,0.00016438,2]
[350292245,1737773432501,-508.88376882,0.00016438,2]
[350292247,1737773432510,-500.0,0.00016438,2]
[350292249,1737773432519,-500.0,0.00016438,2]
[350292251,1737773432529,-395.14950418,0.00016438,2]
[350292253,1737773432538,-300.62445133,0.00016438,2]
[350292255,1737773432548,-518.82599111,0.00016438,2]
[350292257,1737773432557,-516.59201871,0.00016438,2]
[350292259,1737773432566,-512.9154201,0.00016438,2]
[350292261,1737773432575,-502.67480545,0.00016438,2]
[350292263,1737773432584,-301.84783557,0.00016438,2]
[350292264,1737773432593,-530.9219621,0.00016438,2]
[350292266,1737773432603,-500.0,0.00016438,2]
[350292268,1737773432614,-513.48475492,0.00016438,2]
[350292270,1737773432626,-520.56620696,0.00016438,2]
[350292272,1737773432635,-522.54216622,0.00016438,2]
[350292274,1737773432644,-514.08686604,0.00016438,2]
[350292276,1737773432653,-500.0,0.00016438,2]
[350292278,1737773432662,-500.0,0.00016438,2]
[350292280,1737773432671,-500.0,0.00016438,2]
[350292282,1737773432681,-500.0,0.00016438,2]
[350292284,1737773432690,-500.0,0.00016438,2]
[350292286,1737773432699,-507.99491547,0.00016438,2]
[350292288,1737773432708,-500.0,0.00016438,2]
[350292290,1737773432717,-500.0,0.00016438,2]
[350292292,1737773432727,-500.0,0.00016438,2]
[350292294,1737773432736,-500.0,0.00016438,2]
[350292296,1737773432745,-511.69513697,0.00016438,2]
[350292298,1737773432755,-500.0,0.00016438,2]
[350292300,1737773432764,-502.15278319,0.00016438,2]
[350292302,1737773432773,-503.7587074,0.00016438,2]
[350292304,1737773432783,-500.0,0.00016438,2]
[350292306,1737773432792,-500.0,0.00016438,2]
[350292308,1737773432802,-500.0,0.00016438,2]
[350292310,1737773432811,-500.0,0.00016438,2]
[350292312,1737773432820,-502.06790897,0.00016438,2]
[350292314,1737773432829,-500.0,0.00016438,2]
[350292316,1737773432838,-500.0,0.00016438,2]
[350292318,1737773432847,-502.433695,0.00016438,2]
[350292320,1737773432856,-416.21726226,0.00016438,2]
[350292322,1737773432867,-505.67513924,0.00016438,2]
[350292324,1737773432876,-273.46980237,0.00016438,2]
[350292326,1737773432885,-500.0,0.00016438,2]
[350292328,1737773432895,-500.0,0.00016438,2]
[350292330,1737773432904,-500.0,0.00016438,2]
[350292332,1737773432914,-500.0,0.00016438,2]
[350292334,1737773432923,-500.0,0.00016438,2]
[350292336,1737773432932,-500.0,0.00016438,2]
[350292338,1737773432942,-507.70598522,0.00016438,2]
[350292340,1737773432951,-504.11410093,0.00016438,2]
[350292342,1737773432961,-500.0,0.00016438,2]
[350292344,1737773432970,-500.0,0.00016438,2]
[350292346,1737773432979,-607.39945682,0.00016438,2]
[350292348,1737773432988,-502.08636374,0.00016438,2]
[350292350,1737773432997,-283.43387334,0.00016438,2]
[350292352,1737773433007,-447.2169085,0.00016438,2]
[350292354,1737773433016,-500.0,0.00016438,2]
[350292356,1737773433025,-500.0,0.00016438,2]
[350292358,1737773433034,-505.76909839,0.00016438,2]
[350292360,1737773433043,-507.38553295,0.00016438,2]
[350292362,1737773433053,-504.40157108,0.00016438,2]
[350292364,1737773433063,-500.0,0.00016438,2]
[350292366,1737773433073,-500.0,0.00016438,2]
[350292368,1737773433083,-500.0,0.00016438,2]
[350292370,1737773433093,-500.0,0.00016438,2]
[350292372,1737773433102,-508.70018009,0.00016438,2]
[350292374,1737773433112,-500.0,0.00016438,2]
[350292376,1737773433122,-503.06958966,0.00016438,2]
[350292378,1737773433131,-500.0,0.00016438,2]
[350292380,1737773433141,-500.0,0.00016438,2]
[350292382,1737773433154,-500.0,0.00016438,2]
[350292384,1737773433163,-500.0,0.00016438,2]
[350292386,1737773433172,-500.0,0.00016438,2]
[350292388,1737773433182,-500.0,0.00016438,2]
[350292390,1737773433191,-519.48254739,0.00016438,2]
[350292392,1737773433201,-508.96353135,0.00016438,2]
[350292394,1737773433210,-502.16755484,0.00016438,2]
[350292396,1737773433219,-500.0,0.00016438,2]
[350292398,1737773433230,-500.0,0.00016438,2]
[350292399,1737773433240,-307.63456473,0.00016438,2]
[350292400,1737773433249,-505.60944583,0.00016438,2]
[350292401,1737773433258,-510.97334178,0.00016438,2]
[350292402,1737773433268,-502.12064429,0.00016438,2]
[350292403,1737773433277,-500.0,0.00016438,2]
[350292404,1737773433287,-500.0,0.00016438,2]
[350292405,1737773433296,-474.50723661,0.00016438,2]
[350292406,1737773433306,-500.0,0.00016438,2]
[350292407,1737773433315,-506.96457244,0.00016438,2]
[350292408,1737773433325,-500.0,0.00016438,2]
[350292409,1737773433334,-500.0,0.00016438,2]
[350292410,1737773433344,-500.0,0.00016438,2]
[350292411,1737773433353,-507.2764738,0.00016438,2]
[350292412,1737773433363,-500.0,0.00016438,2]
[350292413,1737773433373,-529.54709798,0.00016438,2]
[350292414,1737773433383,-507.51627286,0.00016438,2]
[350292415,1737773433392,-500.0,0.00016438,2]
[350292416,1737773433402,-500.0,0.00016438,2]
[350292417,1737773433411,-503.91564004,0.00016438,2]
[350292418,1737773433422,-500.0,0.00016438,2]
[350292419,1737773433431,-510.63120144,0.00016438,2]
[350292420,1737773433441,-500.0,0.00016438,2]
[350292421,1737773433450,-500.0,0.00016438,2]
[350292422,1737773433460,-504.48842854,0.00016438,2]
[350292423,1737773433469,-523.99304462,0.00016438,2]
[350292424,1737773433478,-1002.070132,0.00016438,2]
[350292425,1737773433488,-520.69353191,0.00016438,2]
[350292426,1737773433497,-500.0,0.00016438,2]
[350292427,1737773433507,-500.0,0.00016438,2]
[350292428,1737773433517,-500.0,0.00016438,2]
[350292429,1737773433526,-504.77196696,0.00016438,2]
[350292430,1737773433535,-500.0,0.00016438,2]
[350292431,1737773433545,-500.0,0.00016438,2]
[350292432,1737773433554,-500.0,0.00016438,2]
[350292433,1737773433564,-500.0,0.00016438,2]
[350292434,1737773433573,-233.29664698,0.00016438,2]
[350292435,1737773433583,-519.81700128,0.00016438,2]
[350292436,1737773433592,-500.0,0.00016438,2]
[350292437,1737773433601,-510.44039671,0.00016438,2]
[350292438,1737773433610,-158.074461,0.00016438,2]
[350292439,1737773433621,-500.0,0.00016438,2]
[350292440,1737773433630,-500.0,0.00016438,2]
[350292441,1737773433639,-510.03197737,0.00016438,2]
[350292442,1737773433649,-500.0,0.00016438,2]
[350292443,1737773433659,-518.20944758,0.00016438,2]
[350292444,1737773433669,-502.19516894,0.00016438,2]
[350292445,1737773433679,-501.98621706,0.00016438,2]
[350292446,1737773433688,-300.0,0.00016438,2]
[350292447,1737773433698,-500.0,0.00016438,2]
[350292448,1737773433708,-502.09859787,0.00016438,2]
[350292449,1737773433718,-500.0,0.00016438,2]
[350292450,1737773433728,-500.0,0.00016438,2]
[350292451,1737773433738,-500.0,0.00016438,2]
[350292452,1737773433748,-500.0,0.00016438,2]
[350292453,1737773433758,-500.0,0.00016438,2]
[350292454,1737773433768,-520.83527913,0.00016438,2]
[350292455,1737773433779,-501.72515162,0.00016438,2]
[350292456,1737773433788,-500.0,0.00016438,2]
[350292457,1737773433799,-500.0,0.00016438,2]
[350292458,1737773433808,-500.0,0.00016438,2]
[350292459,1737773433819,-500.0,0.00016438,2]
[350292460,1737773433828,-500.0,0.00016438,2]
[350292461,1737773433838,-512.40956443,0.00016438,2]
[350292462,1737773433847,-500.0,0.00016438,2]
[350292463,1737773433857,-500.0,0.00016438,2]
[350292464,1737773433867,-500.0,0.00016438,2]
[350292465,1737773433877,-501.94976832,0.00016438,2]
[350292466,1737773433886,-505.60096519,0.00016438,2]
[350292467,1737773433896,-672.532752,0.00016438,2]
[350292468,1737773433906,-502.25438503,0.00016438,2]
[350292469,1737773433916,-500.0,0.00016438,2]
[350292470,1737773433927,-512.81059723,0.00016438,2]
[350292471,1737773433936,-500.0,0.00016438,2]
[350292472,1737773433946,-500.0,0.00016438,2]
[350292473,1737773433955,-500.0,0.00016438,2]
[350292474,1737773433965,-500.0,0.00016438,2]
[350292475,1737773433975,-500.0,0.00016438,2]
[350292476,1737773433984,-500.0,0.00016438,2]
[350292477,1737773433995,-500.0,0.00016438,2]
[350292478,1737773434005,-500.0,0.00016438,2]
[350292479,1737773434015,-507.33701935,0.00016438,2]
[350292480,1737773434024,-511.4542972,0.00016438,2]
[350292481,1737773434034,-500.0,0.00016438,2]
[350292482,1737773434044,-500.0,0.00016438,2]
[350292483,1737773434053,-502.25929157,0.00016438,2]
[350292484,1737773434063,-512.04255573,0.00016438,2]
[350292485,1737773434072,-500.0,0.00016438,2]
[350292486,1737773434081,-500.0,0.00016438,2]
[350292487,1737773434092,-514.20550079,0.00016438,2]
[350292488,1737773434102,-637.77,0.00016438,2]
[350292489,1737773434112,-500.0,0.00016438,2]
[350292490,1737773434121,-509.36157092,0.00016438,2]
[350292491,1737773434131,-500.0,0.00016438,2]
[350292492,1737773434141,-500.0,0.00016438,2]
[350292493,1737773434151,-500.0,0.00016438,2]
[350292494,1737773434163,-500.0,0.00016438,2]
[350292495,1737773434172,-500.0,0.00016438,2]
[350292496,1737773434181,-500.0,0.00016438,2]
[350292497,1737773434191,-505.91385838,0.00016438,2]
[350292498,1737773434201,-500.0,0.00016438,2]
[350292499,1737773434211,-500.0,0.00016438,2]
[350292500,1737773434220,-500.0,0.00016438,2]
[350292501,1737773434229,-500.0,0.00016438,2]
[350292502,1737773434239,-513.39837964,0.00016438,2]
[350292503,1737773434250,-505.85042708,0.00016438,2]
[350292504,1737773434259,-500.0,0.00016438,2]
[350292505,1737773434269,-500.0,0.00016438,2]
[350292506,1737773434279,-500.0,0.00016438,2]
[350292507,1737773434289,-500.0,0.00016438,2]
[350292508,1737773434298,-594.0755981,0.00016438,2]
[350292509,1737773434309,-507.62726603,0.00016438,2]
[350292510,1737773434318,-500.0,0.00016438,2]
[350292511,1737773434328,-512.02001611,0.00016438,2]
[350292512,1737773434338,-500.0,0.00016438,2]
[350292513,1737773434347,-506.48750505,0.00016438,2]
[350292514,1737773434358,-500.0,0.00016438,2]
[350292515,1737773434368,-500.0,0.00016438,2]
[350292516,1737773434378,-500.0,0.00016438,2]
[350292517,1737773434388,-502.43302838,0.00016438,2]
[350292518,1737773434398,-500.0,0.00016438,2]
[350292519,1737773434408,-500.0,0.00016438,2]
[350292520,1737773434417,-508.40267653,0.00016438,2]
[350292521,1737773434427,-507.60088767,0.00016438,2]
[350292522,1737773434437,-500.0,0.00016438,2]
[350292523,1737773434446,-509.09756893,0.00016438,2]
[350292524,1737773434456,-543.77535703,0.00016438,2]
[350292525,1737773434465,-500.0,0.00016438,2]
[350292526,1737773434475,-517.58227366,0.00016438,2]
[350292527,1737773434484,-500.0,0.00016438,2]
[350292528,1737773434495,-500.0,0.00016438,2]
[350292529,1737773434505,-517.02975756,0.00016438,2]
[350292530,1737773434515,-500.0,0.00016438,2]
[350292531,1737773434524,-500.0,0.00016438,2]
[350292532,1737773434534,-500.0,0.00016438,2]
[350292533,1737773434545,-461.02610004,0.00016438,2]
[350292534,1737773434555,-500.0,0.00016438,2]
[350292535,1737773434564,-500.0,0.00016438,2]
[350292536,1737773434574,-500.0,0.00016438,2]
[350292537,1737773434583,-500.0,0.00016438,2]
[350292538,1737773434593,-500.0,0.00016438,2]
[350292539,1737773434603,-500.0,0.00016438,2]
[350292540,1737773434612,-500.0,0.00016438,2]
[350292541,1737773434623,-500.0,0.00016438,2]
[350292542,1737773434632,-505.73971225,0.00016438,2]
[350292543,1737773434642,-500.0,0.00016438,2]
[350292544,1737773434652,-597.71424144,0.00016438,2]
[350292545,1737773434661,-500.0,0.00016438,2]
[350292546,1737773434671,-502.35978572,0.00016438,2]
[350292547,1737773434680,-525.42624158,0.00016438,2]
[350292548,1737773434689,-502.48281567,0.00016438,2]
[350292549,1737773434699,-500.0,0.00016438,2]
[350292550,1737773434708,-500.0,0.00016438,2]
[350292551,1737773434718,-502.89837272,0.00016438,2]
[350292552,1737773434727,-500.0,0.00016438,2]
[350292553,1737773434736,-500.0,0.00016438,2]
[350292554,1737773434746,-500.0,0.00016438,2]
[350292555,1737773434756,-500.0,0.00016438,2]
[350292556,1737773434766,-500.0,0.00016438,2]
[350292557,1737773434776,-500.0,0.00016438,2]
[350292558,1737773434785,-500.0,0.00016438,2]
[350292559,1737773434795,-500.0,0.00016438,2]
[350292560,1737773434804,-505.65374702,0.00016438,2]
[350292561,1737773434814,-500.0,0.00016438,2]
[350292562,1737773434823,-503.86418191,0.00016438,2]
[350292563,1737773434832,-513.57307579,0.00016438,2]
[350292564,1737773434842,-500.0,0.00016438,2]
[350292565,1737773434851,-500.0,0.00016438,2]
[350292566,1737773434861,-500.0,0.00016438,2]
[350292567,1737773434871,-502.42391245,0.00016438,2]
[350292568,1737773434881,-500.0,0.00016438,2]
[350292569,1737773434890,-501.85667632,0.00016438,2]
[350292570,1737773434900,-500.0,0.00016438,2]
[350292571,1737773434909,-500.0,0.00016438,2]
[350292572,1737773434919,-198.39247819,0.00016438,2]
[350292573,1737773434929,-500.61576915,0.00016438,2]
[350292574,1737773434938,-501.82388699,0.00016438,2]
[350292575,1737773434947,-500.0,0.00016438,2]
[350292576,1737773434957,-508.8033101,0.00016438,2]
[350292577,1737773434967,-504.87253239,0.00016438,2]
[350292578,1737773434977,-500.0,0.00016438,2]
[350292579,1737773434986,-460.64086458,0.00016438,2]
[350292580,1737773434995,-500.0,0.00016438,2]
[350292581,1737773435005,-500.0,0.00016438,2]
[350292582,1737773435015,-505.47653232,0.00016438,2]
[350292583,1737773435024,-500.0,0.00016438,2]
[350292584,1737773435034,-509.51636998,0.00016438,2]
[350292585,1737773435043,-500.0,0.00016438,2]
[350292586,1737773435053,-500.0,0.00016438,2]
[350292587,1737773435063,-503.24812449,0.00016438,2]
[350292588,1737773435073,-500.0,0.00016438,2]
[350292589,1737773435082,-502.78169623,0.00016438,2]
[350292590,1737773435092,-504.26694784,0.00016438,2]
[350292591,1737773435102,-500.0,0.00016438,2]
[350292592,1737773435111,-692.33921798,0.00016438,2]
[350292593,1737773435122,-500.0,0.00016438,2]
[350292594,1737773435132,-500.0,0.00016438,2]
[350292595,1737773435141,-500.0,0.00016438,2]
[350292596,1737773435153,-500.0,0.00016438,2]
[350292597,1737773435282,-498.95403899,0.00016438,2]
[350292598,1737773435292,-502.94960837,0.00016438,2]
[350292599,1737773435302,-500.0,0.00016438,2]
[350292600,1737773435311,-500.0,0.00016438,2]
[350292601,1737773435321,-500.0,0.00016438,2]
[350292602,1737773435331,-500.0,0.00016438,2]
[350292603,1737773435340,-500.0,0.00016438,2]
[350292604,1737773435350,-511.19382828,0.00016438,2]
[350292605,1737773435359,-500.0,0.00016438,2]
[350292606,1737773435369,-500.0,0.00016438,2]
[350292607,1737773435378,-500.0,0.00016438,2]
[350292608,1737773435388,-500.0,0.00016438,2]
[350292609,1737773435397,-509.26410123,0.00016438,2]
[350292610,1737773435407,-500.0,0.00016438,2]
[350292611,1737773435417,-627.08728379,0.00016438,2]
[350292612,1737773435427,-500.0,0.00016438,2]
[350292613,1737773435436,-503.87459361,0.00016438,2]
[350292614,1737773435445,-500.0,0.00016438,2]
[350292615,1737773435455,-500.0,0.00016438,2]
[350292616,1737773435464,-451.58290346,0.00016438,2]
[350292617,1737773435473,-462.21890117,0.00016438,2]
[350292618,1737773435483,-500.0,0.00016438,2]
[350292619,1737773435492,-319.74083394,0.00016438,2]
[350292620,1737773435502,-500.0,0.00016438,2]
[350292621,1737773435512,-500.0,0.00016438,2]
[350292622,1737773435522,-507.46144411,0.00016438,2]
[350292623,1737773435531,-500.0,0.00016438,2]
[350292624,1737773435541,-500.0,0.00016438,2]
[350292625,1737773435550,-500.0,0.00016438,2]
[350292626,1737773435559,-500.0,0.00016438,2]
[350292627,1737773435569,-500.0,0.00016438,2]
[350292628,1737773435579,-500.0,0.00016438,2]
[350292629,1737773435588,-432.08174422,0.00016438,2]
[350292630,1737773435597,-500.0,0.00016438,2]
[350292631,1737773435607,-500.0,0.00016438,2]
[350292632,1737773435616,-500.0,0.00016438,2]
[350292633,1737773435626,-551.19804155,0.00016438,2]
[350292634,1737773435636,-500.0,0.00016438,2]
[350292635,1737773435645,-500.0,0.00016438,2]
[350292636,1737773435654,-500.0,0.00016438,2]
[350292637,1737773435663,-500.0,0.00016438,2]
[350292638,1737773435673,-500.0,0.00016438,2]
[350292639,1737773435683,-204.90952584,0.00016438,2]
[350292640,1737773435692,-500.81155705,0.00016438,2]
[350292641,1737773435701,-500.0,0.00016438,2]
[350292642,1737773435711,-207.36689083,0.00016438,2]
[350292643,1737773435720,-500.0,0.00016438,2]
[350292644,1737773435730,-500.0,0.00016438,2]
[350292645,1737773435739,-500.0,0.00016438,2]
[350292646,1737773435748,-500.0,0.00016438,2]
[350292647,1737773435757,-500.0,0.00016438,2]
[350292648,1737773435767,-500.0,0.00016438,2]
[350292649,1737773435776,-248.4341347,0.00016438,2]
[350292650,1737773435786,-500.0,0.00016438,2]
[350292651,1737773435795,-500.0,0.00016438,2]
[350292652,1737773435805,-500.0,0.00016438,2]
[350292653,1737773435815,-500.0,0.00016438,2]
[350292654,1737773435824,-484.67403975,0.00016438,2]
[350292655,1737773435833,-500.0,0.00016438,2]
[350292656,1737773435842,-500.0,0.00016438,2]
[350292657,1737773435851,-500.0,0.00016438,2]
[350292658,1737773435861,-866.74,0.00016438,2]
[350292659,1737773435871,-224.20114523,0.00016438,2]
[350292660,1737773435880,-500.0,0.00016438,2]
[350292661,1737773435889,-500.0,0.00016438,2]
[350292662,1737773435899,-507.48484842,0.00016438,2]
[350292663,1737773435909,-500.0,0.00016438,2]
[350292664,1737773435919,-1168.46,0.00016438,2]
[350292665,1737773435928,-500.0,0.00016438,2]
[350292666,1737773435938,-500.0,0.00016438,2]
[350292667,1737773435947,-1521.17,0.00016438,2]
[350292668,1737773435957,-500.0,0.00016438,2]
[350292669,1737773435967,-519.47510725,0.00016438,2]
[350292670,1737773435976,-500.0,0.00016438,2]
[350292671,1737773435985,-500.0,0.00016438,2]
[350292672,1737773435995,-502.69373547,0.00016438,2]
[350292673,1737773436006,-500.0,0.00016438,2]
[350292674,1737773436015,-500.0,0.00016438,2]
[350292675,1737773436024,-1565.06,0.00016438,2]
[350292676,1737773436034,-504.00542504,0.00016438,2]
[350292677,1737773436043,-500.0,0.00016438,2]
[350292678,1737773436053,-500.0,0.00016438,2]
[350292679,1737773436062,-500.0,0.00016438,2]
[350292680,1737773436071,-500.0,0.00016438,2]
[350292681,1737773436081,-500.0,0.00016438,2]
[350292682,1737773436090,-500.0,0.00016438,2]
[350292683,1737773436099,-502.53281396,0.00016438,2]
[350292684,1737773436109,-500.0,0.00016438,2]
[350292685,1737773436118,-1243.83,0.00016438,2]
[350292686,1737773436127,-501.6100964,0.00016438,2]
[350292687,1737773436136,-504.07722467,0.00016438,2]
[350292688,1737773436147,-500.0,0.00016438,2]
[350292689,1737773436160,-507.95624442,0.00016438,2]
[350292690,1737773436170,-200.0,0.00016438,2]
[350292691,1737773436179,-514.80095941,0.00016438,2]
[350292692,1737773436189,-500.0,0.00016438,2]
[350292693,1737773436199,-500.0,0.00016438,2]
[350292694,1737773436209,-500.0,0.00016438,2]
[350292695,1737773436219,-500.0,0.00016438,2]
[350292696,1737773436229,-500.0,0.00016438,2]
[350292697,1737773436239,-500.0,0.00016438,2]
[350292698,1737773436249,-500.0,0.00016438,2]
[350292699,1737773436259,-500.0,0.00016438,2]
[350292700,1737773436268,-503.81742409,0.00016438,2]
[350292701,1737773436278,-500.0,0.00016438,2]
[350292702,1737773436287,-500.0,0.00016438,2]
[350292703,1737773436296,-500.0,0.00016438,2]
[350292704,1737773436306,-500.0,0.00016438,2]
[350292705,1737773436316,-500.0,0.00016438,2]
[350292706,1737773436325,-500.0,0.00016438,2]
[350292707,1737773436334,-500.0,0.00016438,2]
[350292708,1737773436344,-500.0,0.00016438,2]
[350292709,1737773436353,-1449.43,0.00016438,2]
[350292710,1737773436362,-500.0,0.00016438,2]
[350292711,1737773436372,-500.0,0.00016438,2]
[350292712,1737773436382,-500.0,0.00016438,2]
[350292713,1737773436391,-500.0,0.00016438,2]
[350292714,1737773436400,-510.1362565,0.00016438,2]
[350292715,1737773436409,-500.0,0.00016438,2]
[350292716,1737773436419,-505.19420187,0.00016438,2]
[350292717,1737773436428,-500.0,0.00016438,2]
[350292718,1737773436438,-500.0,0.00016438,2]
[350292719,1737773436447,-500.0,0.00016438,2]
[350292720,1737773436457,-503.74632758,0.00016438,2]
[350292721,1737773436466,-503.69646771,0.00016438,2]
[350292722,1737773436475,-438.42921504,0.00016438,2]
[350292723,1737773436485,-809.88,0.00016438,2]
[350292724,1737773436494,-505.40465074,0.00016438,2]
[350292725,1737773436503,-503.2918187,0.00016438,2]
[350292726,1737773436513,-500.0,0.00016438,2]
[350292727,1737773436522,-500.0,0.00016438,2]
[350292728,1737773436532,-500.0,0.00016438,2]
[350292729,1737773436541,-500.0,0.00016438,2]
[350292730,1737773436551,-500.0,0.00016438,2]
[350292731,1737773436561,-500.0,0.00016438,2]
[350292732,1737773436570,-500.0,0.00016438,2]
[350292733,1737773436580,-501.47982645,0.00016438,2]
[350292734,1737773436589,-537.96034591,0.00016438,2]
[350292735,1737773436599,-504.33021329,0.00016438,2]
[350292736,1737773436609,-500.0,0.00016438,2]
[350292737,1737773436619,-500.0,0.00016438,2]
[350292738,1737773436628,-500.0,0.00016438,2]
[350292739,1737773436637,-500.0,0.00016438,2]
[350292740,1737773436647,-553.14121323,0.00016438,2]
[350292741,1737773436657,-500.0,0.00016438,2]
[350292742,1737773436668,-500.0,0.00016438,2]
[350292743,1737773436678,-500.0,0.00016438,2]
[350292744,1737773436688,-500.0,0.00016438,2]
[350292745,1737773436698,-500.0,0.00016438,2]
[350292746,1737773436709,-501.15541772,0.00016438,2]
[350292747,1737773436720,-718.32,0.00016438,2]
[350292748,1737773436731,-500.0,0.00016438,2]
[350292749,1737773436742,-500.0,0.00016438,2]
[350292750,1737773436754,-500.0,0.00016438,2]
[350292751,1737773436765,-500.0,0.00016438,2]
[350292752,1737773436775,-500.0,0.00016438,2]
[350292753,1737773436786,-500.0,0.00016438,2]
[350292754,1737773436797,-500.0,0.00016438,2]
[350292755,1737773436808,-500.0,0.00016438,2]
[350292756,1737773436817,-500.0,0.00016438,2]
[350292757,1737773436827,-500.0,0.00016438,2]
[350292758,1737773436836,-500.0,0.00016438,2]
[350292759,1737773436846,-500.40024271,0.00016438,2]
[350292760,1737773436855,-500.0,0.00016438,2]
[350292761,1737773436865,-500.0,0.00016438,2]
[350292762,1737773436875,-500.0,0.00016438,2]
[350292763,1737773436884,-500.0,0.00016438,2]
[350292764,1737773436893,-578.58,0.00016438,2]
[350292765,1737773436903,-500.0,0.00016438,2]
[350292766,1737773436912,-500.0,0.00016438,2]
[350292767,1737773436921,-500.0,0.00016438,2]
[350292768,1737773436931,-495.81830879,0.00016438,2]
[350292769,1737773436940,-581.75,0.00016438,2]
[350292770,1737773436950,-500.0,0.00016438,2]
[350292771,1737773436959,-501.84584603,0.00016438,2]
[350292772,1737773436968,-500.0,0.00016438,2]
[350292773,1737773436978,-500.0,0.00016438,2]
[350292774,1737773436987,-500.0,0.00016438,2]
[350292775,1737773436997,-500.0,0.00016438,2]
[350292776,1737773437006,-1026.27,0.00016438,2]
[350292777,1737773437015,-500.0,0.00016438,2]
[350292778,1737773437024,-530.47388806,0.00016438,2]
[350292779,1737773437034,-500.0,0.00016438,2]
[350292780,1737773437043,-500.0,0.00016438,2]
[350292781,1737773437052,-500.0,0.00016438,2]
[350292782,1737773437062,-500.0,0.00016438,2]
[350292783,1737773437071,-500.0,0.00016438,2]
[350292784,1737773437081,-578.48,0.00016438,2]
[350292785,1737773437090,-500.0,0.00016438,2]
[350292786,1737773437099,-500.0,0.00016438,2]
[350292787,1737773437109,-515.6438721,0.00016438,2]
[350292788,1737773437118,-500.0,0.00016438,2]
[350292789,1737773437127,-500.0,0.00016438,2]
[350292790,1737773437136,-602.39733735,0.00016438,2]
[350292791,1737773437146,-500.0,0.00016438,2]
[350292792,1737773437157,-2228.61,0.00016438,2]
[350292793,1737773437167,-500.0,0.00016438,2]
[350292794,1737773437176,-500.0,0.00016438,2]
[350292795,1737773437185,-500.0,0.00016438,2]
[350292796,1737773437195,-503.63831733,0.00016438,2]
[350292797,1737773437205,-500.0,0.00016438,2]
[350292798,1737773437214,-500.0,0.00016438,2]
[350292799,1737773437224,-500.0,0.00016438,2]
[350292800,1737773437234,-502.81994424,0.00016438,2]
[350292801,1737773437244,-500.0,0.00016438,2]
[350292802,1737773437253,-554.29666733,0.00016438,2]
[350292803,1737773437263,-500.61220485,0.00016438,2]